[Event "RUS-ch Blitz Women 2018"]
[Site "Sochi"]
[Date "2018.10.07"]
[Round "18"]
[White "Shuvalova, Polina"]
[Black "Maletina, Tatiana"]
[Result "1/2-1/2"]
[ECO "C03"]
[WhiteElo "2421"]
[BlackElo "2270"]
[Annotator "RC"]
[PlyCount "111"]
[EventDate "2018.10.07"]
[EventType "swiss"]
[EventCountry "RUS"]
[SourceTitle "playchess.com"]
[Source "ChessBase"]
[SourceQuality "1"]
[TimeControl "180+2"]

1. e4 {[%emt 0:00:00]} e6 {[%emt 0:00:00]} 2. d4 {[%emt 0:00:00]} d5 {[%emt 0:00:00]} 3. Nd2 {[%emt 0:00:00]} Be7 {[%emt 0:00:01]} 4. Bd3 {[%emt 0:00:05]} c5 {[%emt 0:00:01]} 5. dxc5 {[%emt 0:00:10]} Nf6 {[%emt 0:00:01]} 6. exd5 {[%emt 0:00:13]} exd5 {[%emt 0:00:05]} 7. Ngf3 {[%emt 0:00:02]} O-O {[%emt 0:00:03]} 8. Nb3 {[%emt 0:00:05]} a5 {[%emt 0:00:01]} 9. a4 {[%emt 0:00:05]} Nc6 {[%emt 0:00:14]} 10. O-O {[%emt 0:00:03]} Bg4 {[%emt 0:00:02]} 11. h3 {[%emt 0:00:03]} Bh5 {[%emt 0:00:01]} 12. Bf4 {[%emt 0:00:05]} Rc8 {[%emt 0:00:09]} 13. Re1 {[%emt 0:00:04]} Re8 {[%emt 0:00:03]} 14. g4 {[%emt 0:00:12]} Bg6 {[%emt 0:00:02]} 15. Bxg6 {[%emt 0:00:03]} hxg6 {[%emt 0:00:01]} 16. c3 {[%emt 0:00:06]} Ne4 {[%emt 0:00:02]} 17. Be3 {[%emt 0:00:11]} Bf8 {[%emt 0:00:02]} 18. Kg2 {[%emt 0:00:10]} Ne5 {[%emt 0:00:15]} 19. Nxe5 {[%emt 0:00:04]} Rxe5 {[%emt 0:00:01]} 20. Bd4 {[%emt 0:00:08]} Re8 {[%emt 0:00:08]} 21. Qd3 {[%emt 0:00:11]} Bxc5 {[%emt 0:00:28]} 22. Nxc5 {[%emt 0:00:11]} Nxc5 {[%emt 0:00:02]} 23. Qb5 {[%emt 0:00:11]} Ne6 {[%emt 0:00:28]} 24. Be5 {[%emt 0:00:14]} b6 {[%emt 0:00:13]} 25. Rad1 {[%emt 0:00:02]} Qh4 {[%emt 0:00:14]} 26. Qxd5 {[%emt 0:00:08]} Rcd8 {[%emt 0:00:08]} 27. Bg3 {[%emt 0:00:29]} Qf6 {[%emt 0:00:15]} 28. Qf3 {[%emt 0:00:02]} Qe7 {[%emt 0:00:06]} 29. Rxd8 {[%emt 0:00:09]} Rxd8 {[%emt 0:00:01]} 30. Re3 {[%emt 0:00:06]} Qd7 {[%emt 0:00:03]} 31. Be5 {[%emt 0:00:06]} Qxa4 {[%emt 0:00:04]} 32. Qb7 {[%emt 0:00:04]} Qb5 {[%emt 0:00:08]} 33. Bg3 {[%emt 0:00:08]} Qxb2 {[%emt 0:00:10]} 34. Rf3 {[%emt 0:00:00]} f6 {[%emt 0:00:11]} 35. Qe7 {[%emt 0:00:06]} Qb3 {[%emt 0:00:04]} 36. Re3 {[%emt 0:00:03]} Qd5+ {[%emt 0:00:01]} 37. Kh2 {[%emt 0:00:01]} Ng5 {[%emt 0:00:02]} 38. Qc7 {[%emt 0:00:08]} Nf7 {[%emt 0:00:04]} 39. Re7 {[%emt 0:00:01]} Ra8 {[%emt 0:00:05]} 40. Rd7 {[%emt 0:00:03]} Qb3 {[%emt 0:00:03]} 41. Qb7 {[%emt 0:00:01]} Re8 {[%emt 0:00:03]} 42. Bc7 {[%emt 0:00:03]} a4 {[%emt 0:00:03]} 43. Bxb6 {[%emt 0:00:02]} a3 {[%emt 0:00:04]} 44. Qa7 {[%emt 0:00:03]} a2 {[%emt 0:00:02]} 45. Bd4 {[%emt 0:00:01]} Qc4 {[%emt 0:00:03]} 46. Rc7 {[%emt 0:00:02]} Qd5 {[%emt 0:00:02]} 47. Rd7 {[%emt 0:00:01]} Qe6 {[%emt 0:00:03]} 48. Rb7 {[%emt 0:00:03]} Qd6+ {[%emt 0:00:05]} 49. Kg2 {[%emt 0:00:02]} Qd5+ {[%emt 0:00:01]} 50. Kh2 {[%emt 0:00:01]} Qd6+ {[%emt 0:00:01]} 51. Kg2 {[%emt 0:00:00]} Qc6+ {[%emt 0:00:02]} 52. Kh2 {[%emt 0:00:02]} Qd6+ {[%emt 0:00:04]} 53. Kg2 {[%emt 0:00:00]} Qd5+ {[%emt 0:00:01]} 54. Kh2 {[%emt 0:00:01]} Qd6+ {[%emt 0:00:04]} 55. Kg2 {[%emt 0:00:00]} Qc6+ {[%emt 0:00:02]} 56. Kh2 {[%emt 0:00:01]} 1/2-1/2

[Event "RUS-ch Blitz Women 2018"]
[Site "Sochi"]
[Date "2018.10.07"]
[Round "18"]
[White "Ambartsumova, Karina"]
[Black "Bivol, Alina"]
[Result "0-1"]
[ECO "E62"]
[WhiteElo "2379"]
[BlackElo "2403"]
[Annotator "NA"]
[PlyCount "52"]
[EventDate "2018.10.07"]
[EventType "swiss"]
[EventCountry "RUS"]
[SourceTitle "playchess.com"]
[Source "ChessBase"]
[SourceQuality "1"]
[TimeControl "180+2"]

1. c4 {[%emt 0:00:00]} Nf6 {[%emt 0:00:00]} 2. Nc3 {[%emt 0:00:03]} g6 {[%emt 0:00:00]} 3. g3 {[%emt 0:00:04]} Bg7 {[%emt 0:00:00]} 4. Bg2 {[%emt 0:00:00]} O-O {[%emt 0:00:02]} 5. Nf3 {[%emt 0:00:04]} d6 {[%emt 0:00:00]} 6. d4 {[%emt 0:00:02]} Nc6 {[%emt 0:00:01]} 7. O-O {[%emt 0:00:03]} Rb8 {[%emt 0:00:01]} 8. Bf4 {[%emt 0:00:11]} h6 {[%emt 0:00:06]} 9. h3 {[%emt 0:00:09]} a6 {[%emt 0:00:02]} 10. Rc1 {[%emt 0:00:02]} Bd7 {[%emt 0:00:14]} 11. e4 {[%emt 0:00:21]} b5 {[%emt 0:00:26]} 12. cxb5 {[%emt 0:00:14]} axb5 {[%emt 0:00:01]} 13. d5 {[%emt 0:00:32]} Na5 {[%emt 0:00:04]} 14. b4 {[%emt 0:00:14]} Nc4 {[%emt 0:00:03]} 15. Re1 {[%emt 0:00:12]} g5 {[%emt 0:00:18]} 16. Be3 {[%emt 0:00:09]} Nxe3 {[%emt 0:00:04]} 17. Rxe3 {[%emt 0:00:01]} g4 {[%emt 0:00:08]} 18. hxg4 {[%emt 0:00:01]} Bxg4 {[%emt 0:00:01]} 19. Qb3 {[%emt 0:00:05]} Bxf3 {[%emt 0:00:10]} 20. Bxf3 {[%emt 0:00:09]} Nd7 {[%emt 0:00:01]} 21. Be2 {[%emt 0:00:04]} Ne5 {[%emt 0:00:14]} 22. f4 {[%emt 0:00:01]} Nc4 {[%emt 0:00:07]} 23. Rd3 {[%emt 0:00:17]} Qd7 {[%emt 0:00:06]} 24. Nxb5 {[%emt 0:00:16]} Qxb5 {[%emt 0:00:27]} 25. Rxc4 {[%emt 0:00:13]} Ra8 {[%emt 0:00:03]} 26. Rxc7 {[%emt 0:00:06]} Qb6+ {[%emt 0:00:01]} 0-1

[Event "RUS-ch Blitz Women 2018"]
[Site "Sochi"]
[Date "2018.10.07"]
[Round "18"]
[White "Gritsayeva, Oksana"]
[Black "Vinokur, Yuliya"]
[Result "0-1"]
[ECO "B05"]
[WhiteElo "2378"]
[BlackElo "2170"]
[Annotator "NA"]
[PlyCount "101"]
[EventDate "2018.10.07"]
[EventType "swiss"]
[EventCountry "RUS"]
[SourceTitle "playchess.com"]
[Source "ChessBase"]
[SourceQuality "1"]
[TimeControl "180+2"]

1. e4 {[%emt 0:00:00]} Nf6 {[%emt 0:00:31]} 2. e5 {[%emt 0:00:03]} Nd5 {[%emt 0:00:01]} 3. d4 {[%emt 0:00:03]} d6 {[%emt 0:00:01]} 4. Nf3 {[%emt 0:00:01]} Bg4 {[%emt 0:00:01]} 5. Be2 {[%emt 0:00:05]} e6 {[%emt 0:00:01]} 6. c4 {[%emt 0:00:07]} Nb6 {[%emt 0:00:02]} 7. exd6 {[%emt 0:00:03]} cxd6 {[%emt 0:00:01]} 8. O-O {[%emt 0:00:03]} Be7 {[%emt 0:00:02]} 9. h3 {[%emt 0:00:10]} Bh5 {[%emt 0:00:01]} 10. Nc3 {[%emt 0:00:01]} O-O {[%emt 0:00:02]} 11. Be3 {[%emt 0:00:20]} d5 {[%emt 0:00:01]} 12. b3 {[%emt 0:00:09]} Nc6 {[%emt 0:00:04]} 13. c5 {[%emt 0:00:06]} Nc8 {[%emt 0:00:02]} 14. Rb1 {[%emt 0:00:14]} Bxf3 {[%emt 0:00:03]} 15. Bxf3 {[%emt 0:00:01]} Bf6 {[%emt 0:00:01]} 16. b4 {[%emt 0:00:04]} N8e7 {[%emt 0:00:03]} 17. Qd3 {[%emt 0:00:17]} Nf5 {[%emt 0:00:04]} 18. Ne2 {[%emt 0:00:05]} g6 {[%emt 0:00:24]} 19. g3 {[%emt 0:00:03]} Bg7 {[%emt 0:00:04]} 20. Bg2 {[%emt 0:00:02]} Qf6 {[%emt 0:00:12]} 21. Rfd1 {[%emt 0:00:05]} Rad8 {[%emt 0:00:05]} 22. Qd2 {[%emt 0:00:07]} h6 {[%emt 0:00:10]} 23. b5 {[%emt 0:00:01]} Nce7 {[%emt 0:00:09]} 24. Bf4 {[%emt 0:00:13]} g5 {[%emt 0:00:28]} 25. Be5 {[%emt 0:00:08]} Qg6 {[%emt 0:00:01]} 26. Bxg7 {[%emt 0:00:05]} Qxg7 {[%emt 0:00:02]} 27. Rdc1 {[%emt 0:00:06]} e5 {[%emt 0:00:14]} 28. dxe5 {[%emt 0:00:07]} Qxe5 {[%emt 0:00:02]} 29. Rd1 {[%emt 0:00:09]} Rc8 {[%emt 0:00:16]} 30. Rbc1 {[%emt 0:00:06]} Rfd8 {[%emt 0:00:01]} 31. Nd4 {[%emt 0:00:05]} Qf6 {[%emt 0:00:12]} 32. Qd3 {[%emt 0:00:08]} a6 {[%emt 0:00:09]} 33. a4 {[%emt 0:00:02]} axb5 {[%emt 0:00:02]} 34. axb5 {[%emt 0:00:01]} Rc7 {[%emt 0:00:09]} 35. b6 {[%emt 0:00:17]} Rcd7 {[%emt 0:00:12]} 36. Rd2 {[%emt 0:00:10]} Nxd4 37. Qxd4 {[%emt 0:00:02]} Qc6 {[%emt 0:00:07]} 38. h4 {[%emt 0:00:12]} Nf5 {[%emt 0:00:04]} 39. Qd3 {[%emt 0:00:01]} Ng7 {[%emt 0:00:02]} 40. hxg5 {[%emt 0:00:02]} hxg5 {[%emt 0:00:01]} 41. Bf3 {[%emt 0:00:05]} Ne6 {[%emt 0:00:03]} 42. Kg2 {[%emt 0:00:06]} Qa4 {[%emt 0:00:04]} 43. Qe3 {[%emt 0:00:05]} d4 {[%emt 0:00:03]} 44. Qe5 {[%emt 0:00:02]} Nf8 {[%emt 0:00:08]} 45. Qxg5+ {[%emt 0:00:02]} Ng6 {[%emt 0:00:00]} 46. Be4 {[%emt 0:00:02]} d3 {[%emt 0:00:03]} 47. Bxg6 {[%emt 0:00:03]} fxg6 {[%emt 0:00:01]} 48. Qxg6+ {[%emt 0:00:01]} Rg7 {[%emt 0:00:01]} 49. Qe6+ {[%emt 0:00:02]} Rf7 {[%emt 0:00:01]} 50. Rcd1 {[%emt 0:00:04]} Qd4 {[%emt 0:00:02]} 51. Qe3 {[%emt 0:00:06]} 0-1

[Event "RUS-ch Blitz Women 2018"]
[Site "Sochi"]
[Date "2018.10.07"]
[Round "18"]
[White "Vasilevich, Tatjana"]
[Black "Vasilevich, Irina"]
[Result "1-0"]
[ECO "E11"]
[WhiteElo "2360"]
[BlackElo "2258"]
[Annotator "NA"]
[PlyCount "99"]
[EventDate "2018.10.07"]
[EventType "swiss"]
[EventCountry "RUS"]
[SourceTitle "playchess.com"]
[Source "ChessBase"]
[SourceQuality "1"]
[TimeControl "180+2"]

1. d4 {[%emt 0:00:00]} e6 {[%emt 0:00:00]} 2. c4 {[%emt 0:00:00]} Bb4+ {[%emt 0:00:01]} 3. Nd2 {[%emt 0:00:02]} Nf6 {[%emt 0:00:03]} 4. Ngf3 {[%emt 0:00:01]} O-O {[%emt 0:00:02]} 5. g3 {[%emt 0:00:01]} d6 {[%emt 0:00:05]} 6. Bg2 {[%emt 0:00:02]} Qe7 {[%emt 0:00:01]} 7. O-O {[%emt 0:00:02]} Bxd2 {[%emt 0:00:02]} 8. Qxd2 {[%emt 0:00:12]} e5 {[%emt 0:00:02]} 9. dxe5 {[%emt 0:00:10]} dxe5 {[%emt 0:00:02]} 10. b3 {[%emt 0:00:01]} Nc6 {[%emt 0:00:06]} 11. Bb2 {[%emt 0:00:05]} Rd8 {[%emt 0:00:24]} 12. Qc3 {[%emt 0:00:15]} Ne4 {[%emt 0:00:21]} 13. Qc2 {[%emt 0:00:09]} Ng5 {[%emt 0:00:49]} 14. Rad1 {[%emt 0:00:12]} Nxf3+ {[%emt 0:00:07]} 15. Bxf3 {[%emt 0:00:02]} Bh3 {[%emt 0:00:01]} 16. Rfe1 {[%emt 0:00:08]} h6 {[%emt 0:00:22]} 17. a3 {[%emt 0:00:02]} Rab8 {[%emt 0:00:04]} 18. b4 {[%emt 0:00:09]} Nd4 {[%emt 0:00:04]} 19. Bxd4 {[%emt 0:00:01]} exd4 {[%emt 0:00:01]} 20. c5 {[%emt 0:00:06]} b6 {[%emt 0:00:13]} 21. c6 {[%emt 0:00:15]} a5 {[%emt 0:00:06]} 22. Qb2 {[%emt 0:00:04]} axb4 {[%emt 0:00:04]} 23. axb4 {[%emt 0:00:01]} Qf6 {[%emt 0:00:09]} 24. Rd2 {[%emt 0:00:06]} Rd6 {[%emt 0:00:02]} 25. Ra1 {[%emt 0:00:11]} Rbd8 {[%emt 0:00:14]} 26. Ra7 {[%emt 0:00:06]} Rxc6 {[%emt 0:00:03]} 27. Bxc6 {[%emt 0:00:07]} Qxc6 {[%emt 0:00:01]} 28. f3 {[%emt 0:00:02]} d3 {[%emt 0:00:04]} 29. Ra3 {[%emt 0:00:16]} Qe6 {[%emt 0:00:15]} 30. Raxd3 {[%emt 0:00:05]} Rxd3 {[%emt 0:00:01]} 31. Rxd3 {[%emt 0:00:00]} Kh7 {[%emt 0:00:02]} 32. Qd2 {[%emt 0:00:04]} c5 {[%emt 0:00:01]} 33. bxc5 {[%emt 0:00:05]} bxc5 {[%emt 0:00:01]} 34. Rd6 {[%emt 0:00:03]} Qb3 {[%emt 0:00:03]} 35. Qd3+ {[%emt 0:00:03]} Qxd3 {[%emt 0:00:01]} 36. Rxd3 {[%emt 0:00:04]} Be6 {[%emt 0:00:01]} 37. Rc3 {[%emt 0:00:03]} c4 {[%emt 0:00:01]} 38. Kf2 {[%emt 0:00:01]} Kg6 {[%emt 0:00:01]} 39. Ke3 {[%emt 0:00:01]} Kf6 {[%emt 0:00:01]} 40. Kd4 {[%emt 0:00:00]} g5 {[%emt 0:00:04]} 41. e4 {[%emt 0:00:02]} h5 {[%emt 0:00:03]} 42. Ra3 {[%emt 0:00:03]} h4 {[%emt 0:00:03]} 43. Ra5 {[%emt 0:00:03]} hxg3 {[%emt 0:00:03]} 44. hxg3 {[%emt 0:00:00]} Kg6 {[%emt 0:00:03]} 45. Rc5 {[%emt 0:00:04]} Kf6 {[%emt 0:00:02]} 46. Rc6 {[%emt 0:00:02]} Ke7 {[%emt 0:00:02]} 47. Ke5 {[%emt 0:00:02]} Kd7 {[%emt 0:00:03]} 48. Rc5 {[%emt 0:00:02]} Ke7 {[%emt 0:00:01]} 49. Rc7+ {[%emt 0:00:02]} Kf8 {[%emt 0:00:01]} 50. Kf6 {[%emt 0:00:01]} 1-0

[Event "RUS-ch Blitz Women 2018"]
[Site "Sochi"]
[Date "2018.10.07"]
[Round "18"]
[White "Belenkaya, Dina"]
[Black "Ivanova, Karina"]
[Result "0-1"]
[ECO "B13"]
[WhiteElo "2329"]
[BlackElo "2124"]
[Annotator "NA"]
[PlyCount "63"]
[EventDate "2018.10.07"]
[EventType "swiss"]
[EventCountry "RUS"]
[SourceTitle "playchess.com"]
[Source "ChessBase"]
[SourceQuality "1"]
[TimeControl "180+2"]

1. e4 {[%emt 0:00:00]} c6 {[%emt 0:00:00]} 2. d4 {[%emt 0:00:01]} d5 {[%emt 0:00:00]} 3. exd5 {[%emt 0:00:04]} cxd5 {[%emt 0:00:01]} 4. Bd3 {[%emt 0:00:01]} Nc6 {[%emt 0:00:01]} 5. c3 {[%emt 0:00:01]} g6 {[%emt 0:00:02]} 6. Ne2 {[%emt 0:00:10]} Bg7 {[%emt 0:00:03]} 7. O-O {[%emt 0:00:05]} Nh6 {[%emt 0:00:19]} 8. Bf4 {[%emt 0:00:06]} f6 {[%emt 0:00:04]} 9. c4 {[%emt 0:00:31]} e5 {[%emt 0:01:07]} 10. dxe5 {[%emt 0:00:22]} fxe5 {[%emt 0:00:03]} 11. Bxh6 {[%emt 0:00:15]} Bxh6 {[%emt 0:00:02]} 12. cxd5 {[%emt 0:00:01]} Ne7 {[%emt 0:00:16]} 13. Nbc3 {[%emt 0:00:13]} O-O {[%emt 0:00:03]} 14. Qb3 {[%emt 0:00:04]} Kh8 {[%emt 0:00:05]} 15. Ng3 {[%emt 0:00:07]} Nf5 {[%emt 0:00:20]} 16. Rae1 {[%emt 0:00:35]} Nd4 {[%emt 0:00:06]} 17. Qc4 {[%emt 0:00:03]} Bg7 {[%emt 0:00:03]} 18. Nge4 {[%emt 0:00:07]} Bf5 {[%emt 0:00:14]} 19. Nc5 {[%emt 0:00:09]} Rc8 {[%emt 0:00:25]} 20. Qb4 {[%emt 0:00:18]} a5 {[%emt 0:00:15]} 21. Qa3 {[%emt 0:00:08]} Bxd3 {[%emt 0:00:05]} 22. Nxd3 {[%emt 0:00:02]} Nc2 {[%emt 0:00:01]} 23. Qb3 {[%emt 0:00:01]} Nxe1 {[%emt 0:00:01]} 24. Rxe1 {[%emt 0:00:01]} Qd7 {[%emt 0:00:01]} 25. Nxe5 {[%emt 0:00:14]} Rce8 {[%emt 0:00:02]} 26. f4 {[%emt 0:00:02]} Qc7 {[%emt 0:00:01]} 27. Qa3 {[%emt 0:00:07]} Rxf4 {[%emt 0:00:05]} 28. Nxg6+ {[%emt 0:00:03]} hxg6 {[%emt 0:00:02]} 29. Rxe8+ {[%emt 0:00:01]} Kh7 {[%emt 0:00:01]} 30. Qe7 {[%emt 0:00:03]} Qb6+ {[%emt 0:00:02]} 31. Qe3 {[%emt 0:00:07]} Bd4 {[%emt 0:00:02]} 32. Re7+ 0-1

[Event "RUS-ch Blitz Women 2018"]
[Site "Sochi"]
[Date "2018.10.07"]
[Round "18"]
[White "Tomilova, Elena"]
[Black "Miroshnik, Ekaterina"]
[Result "0-1"]
[ECO "D02"]
[WhiteElo "2328"]
[BlackElo "2016"]
[Annotator "NA"]
[PlyCount "70"]
[EventDate "2018.10.07"]
[EventType "swiss"]
[EventCountry "RUS"]
[SourceTitle "playchess.com"]
[Source "ChessBase"]
[SourceQuality "1"]
[TimeControl "180+2"]

1. d4 {[%emt 0:00:00]} d5 {[%emt 0:00:00]} 2. Nf3 {[%emt 0:00:01]} e6 {[%emt 0:00:00]} 3. Bf4 {[%emt 0:00:03]} Nf6 {[%emt 0:00:00]} 4. e3 {[%emt 0:00:02]} c5 {[%emt 0:00:01]} 5. c3 {[%emt 0:00:01]} Bd6 {[%emt 0:00:00]} 6. Bg3 Nc6 7. Nbd2 {[%emt 0:00:02]} O-O {[%emt 0:00:02]} 8. Bd3 {[%emt 0:00:02]} b6 {[%emt 0:00:01]} 9. O-O {[%emt 0:00:04]} Bb7 {[%emt 0:00:00]} 10. Qe2 {[%emt 0:00:02]} Ne7 {[%emt 0:00:03]} 11. Rad1 {[%emt 0:00:03]} Ne4 {[%emt 0:00:06]} 12. Bxd6 {[%emt 0:00:04]} Nxd6 {[%emt 0:00:12]} 13. dxc5 {[%emt 0:00:10]} bxc5 {[%emt 0:00:02]} 14. e4 {[%emt 0:00:03]} Ng6 {[%emt 0:00:10]} 15. Qe3 {[%emt 0:00:28]} Qb6 {[%emt 0:00:12]} 16. e5 {[%emt 0:00:11]} Nf5 {[%emt 0:00:10]} 17. Bxf5 {[%emt 0:00:35]} exf5 {[%emt 0:00:00]} 18. Qg5 {[%emt 0:00:22]} Qe6 {[%emt 0:00:28]} 19. Rfe1 {[%emt 0:00:04]} h6 {[%emt 0:00:20]} 20. Qe3 {[%emt 0:00:08]} Rfc8 {[%emt 0:00:06]} 21. Nb3 {[%emt 0:00:07]} Qe7 {[%emt 0:00:08]} 22. g3 {[%emt 0:00:12]} Kh8 {[%emt 0:00:04]} 23. h4 {[%emt 0:00:03]} f4 {[%emt 0:00:11]} 24. Qe2 {[%emt 0:00:14]} fxg3 {[%emt 0:00:08]} 25. fxg3 {[%emt 0:00:01]} Re8 {[%emt 0:00:18]} 26. Na5 {[%emt 0:00:14]} Rad8 {[%emt 0:00:08]} 27. Nxb7 {[%emt 0:00:12]} Qxb7 {[%emt 0:00:01]} 28. Qf2 {[%emt 0:00:02]} d4 {[%emt 0:00:21]} 29. cxd4 {[%emt 0:00:04]} cxd4 {[%emt 0:00:01]} 30. Rxd4 {[%emt 0:00:03]} Rxd4 {[%emt 0:00:08]} 31. Nxd4 {[%emt 0:00:02]} Nxe5 {[%emt 0:00:03]} 32. Qf4 {[%emt 0:00:18]} f6 {[%emt 0:00:04]} 33. Re2 {[%emt 0:00:03]} Re7 {[%emt 0:00:20]} 34. Rf2 {[%emt 0:00:03]} Qb4 {[%emt 0:00:03]} 35. Kh2 {[%emt 0:00:04]} Nd3 {[%emt 0:00:03]} 0-1

[Event "RUS-ch Blitz Women 2018"]
[Site "Sochi"]
[Date "2018.10.07"]
[Round "18"]
[White "Guseva, Marina"]
[Black "Dordzhieva, Dinara"]
[Result "1/2-1/2"]
[ECO "D35"]
[WhiteElo "2292"]
[BlackElo "2340"]
[Annotator "NA"]
[PlyCount "104"]
[EventDate "2018.10.07"]
[EventType "swiss"]
[EventCountry "RUS"]
[SourceTitle "playchess.com"]
[Source "ChessBase"]
[SourceQuality "1"]
[TimeControl "180+2"]

1. d4 {[%emt 0:00:00]} d5 {[%emt 0:00:06]} 2. c4 {[%emt 0:00:00]} e6 {[%emt 0:00:00]} 3. Nc3 {[%emt 0:00:01]} Nf6 {[%emt 0:00:01]} 4. cxd5 {[%emt 0:00:02]} exd5 {[%emt 0:00:01]} 5. Bg5 {[%emt 0:00:01]} Be7 {[%emt 0:00:01]} 6. e3 {[%emt 0:00:00]} c6 {[%emt 0:00:01]} 7. Bd3 {[%emt 0:00:02]} Nbd7 {[%emt 0:00:01]} 8. Qc2 {[%emt 0:00:08]} Nh5 {[%emt 0:00:01]} 9. Bxe7 {[%emt 0:00:01]} Qxe7 {[%emt 0:00:01]} 10. O-O-O {[%emt 0:00:03]} g6 {[%emt 0:00:00]} 11. h3 {[%emt 0:00:02]} Nb6 {[%emt 0:00:02]} 12. Nf3 {[%emt 0:00:05]} Ng7 {[%emt 0:00:01]} 13. g4 {[%emt 0:00:08]} Be6 {[%emt 0:00:01]} 14. Kb1 {[%emt 0:00:03]} O-O-O {[%emt 0:00:01]} 15. Na4 {[%emt 0:00:06]} Nxa4 {[%emt 0:00:01]} 16. Qxa4 {[%emt 0:00:00]} Kb8 {[%emt 0:00:01]} 17. Ne5 {[%emt 0:00:13]} f6 {[%emt 0:00:20]} 18. Nf3 {[%emt 0:00:02]} Ne8 {[%emt 0:00:01]} 19. Rc1 {[%emt 0:00:06]} Bd7 {[%emt 0:00:03]} 20. Rc3 {[%emt 0:00:11]} Nd6 {[%emt 0:00:14]} 21. Qb4 {[%emt 0:00:24]} Nc8 {[%emt 0:00:16]} 22. Qxe7 {[%emt 0:00:06]} Nxe7 {[%emt 0:00:00]} 23. Rg1 {[%emt 0:00:04]} g5 {[%emt 0:00:01]} 24. h4 h6 25. Rcc1 {[%emt 0:00:13]} Rdg8 {[%emt 0:00:03]} 26. h5 {[%emt 0:00:14]} Nc8 {[%emt 0:00:10]} 27. Nd2 {[%emt 0:00:08]} Nd6 {[%emt 0:00:01]} 28. Bg6 {[%emt 0:00:20]} Rf8 {[%emt 0:00:04]} 29. f4 {[%emt 0:00:05]} Be8 {[%emt 0:00:14]} 30. Bxe8 {[%emt 0:00:29]} Rxe8 {[%emt 0:00:01]} 31. Rce1 {[%emt 0:00:10]} Re7 {[%emt 0:00:04]} 32. Kc2 {[%emt 0:00:02]} Rhe8 {[%emt 0:00:03]} 33. fxg5 {[%emt 0:00:02]} fxg5 {[%emt 0:00:00]} 34. Kd3 {[%emt 0:00:02]} Ne4 {[%emt 0:00:17]} 35. Nxe4 {[%emt 0:00:03]} Rxe4 {[%emt 0:00:00]} 36. b3 {[%emt 0:00:12]} Rf8 {[%emt 0:00:05]} 37. Ke2 {[%emt 0:00:02]} Kc7 {[%emt 0:00:06]} 38. Rg3 {[%emt 0:00:02]} Rfe8 {[%emt 0:00:12]} 39. Kd3 {[%emt 0:00:04]} a5 {[%emt 0:00:08]} 40. Rf1 {[%emt 0:00:01]} R8e6 {[%emt 0:00:07]} 41. a3 {[%emt 0:00:02]} Kb6 42. Rf7 {[%emt 0:00:02]} Re7 {[%emt 0:00:08]} 43. Rxe7 {[%emt 0:00:03]} Rxe7 {[%emt 0:00:00]} 44. Rf3 {[%emt 0:00:01]} Re4 {[%emt 0:00:01]} 45. Rf6 {[%emt 0:00:01]} Rxg4 {[%emt 0:00:00]} 46. Rxh6 {[%emt 0:00:01]} Rh4 {[%emt 0:00:02]} 47. Rh8 {[%emt 0:00:01]} Rh2 {[%emt 0:00:03]} 48. h6 {[%emt 0:00:02]} g4 {[%emt 0:00:02]} 49. h7 {[%emt 0:00:04]} g3 {[%emt 0:00:01]} 50. a4 {[%emt 0:00:04]} g2 {[%emt 0:00:02]} 51. Rg8 {[%emt 0:00:01]} Rxh7 {[%emt 0:00:05]} 52. Rxg2 {[%emt 0:00:02]} Rh1 {[%emt 0:00:01] Ke4} 1/2-1/2